{"text_format":"1","workbook":"xlsx","n_sheets":3,"sheets":["Feuil1","Feuil2","Feuil3"],"not_rendered":{"charts":0,"images":3,"macros":1,"external_links":0,"defined_names":0,"comments":1,"pivot_tables":0},"unopened":[],"bounds":{"document_bytes":16777216,"sheet_cells":100000,"rows_first":2000,"rows_last":500,"rows_between":2000,"halvings":0,"cell_chars":16384,"cell_head_chars":4096},"cells_cut":0,"cells_raw":0,"read":"whole","date_system":"1900"}

{"sheet":"Feuil1","index":0,"n_rows":17,"n_cols":12,"rows_kept":17,"cut":false,"hidden":false,"merged":[]}
["Prénom","Date de naissance","Age","Annonce","A souhaiter  dans"]
["Michel","2000-05-25",{"$f":"DATEDIF(B2,TODAY(),\"y\")","v":15},{"$f":"IF(E2=0,\"JOYEUX ANNIVERSAIRE \"&A2,IF(E2<6,\"Je vous souhaite\",IF(E2<11,\"Bientôt\",\"\")))","v":""},{"$f":"DATEDIF(TODAY(),EDATE(B2,(DATEDIF(B2,TODAY(),\"y\")+1)*12),\"yd\")","v":333}]
["Pierre","2010-06-25",44,{"$f":"IF(E3=0,\"JOYEUX ANNIVERSAIRE \"&A3,IF(E3<6,\"Je vous souhaite\",IF(E3<11,\"Bientôt\",\"\")))","v":""},{"$f":"DATEDIF(TODAY(),EDATE(B3,(DATEDIF(B3,TODAY(),\"y\")+1)*12),\"yd\")","v":364}]
["Marie","1997-06-28",17,"Je vous souhaite",1]
["Simon","1990-06-29",24,"Je vous souhaite",2]
["Annie","1950-06-27",65,"JOYEUX ANNIVERSAIRE Annie",0]
["Chantal","1977-06-28",{"$f":"DATEDIF(B7,TODAY(),\"y\")","v":37},"Je vous souhaite",1]
["Julien","1985-06-29",29,"Je vous souhaite",2]
["Julien","1985-06-28",{"$f":"DATEDIF(B9,TODAY(),\"y\")","v":29},{"$f":"IF(E9=0,\"JOYEUX ANNIVERSAIRE \"&A9,IF(E9<6,\"Je vous souhaite\",IF(E9<11,\"Bientôt\",\"\")))","v":"Je vous souhaite"},{"$f":"DATEDIF(TODAY(),EDATE(B9,(DATEDIF(B9,TODAY(),\"y\")+1)*12),\"yd\")","v":1}]
["Julien","1985-07-01",29,"Je vous souhaite",4,null,null,null,"Je voudrais une alarme clignotante verte pour age compris entre 20  et 30 ans,  orange entre 40 et 50 ans et  rouge >60"]
["Julien","1985-07-02",29,"Je vous souhaite",5,null,null,null,"J'ai tenté  la formule:  =ET(VarEclairage;C2>20)  pour MFC"]
["Julien","1985-07-03",29,"Bientôt",6]
["Julien","2013-06-27",2,"JOYEUX ANNIVERSAIRE Julien",0,null,null,null,"Egalement si possible une cellule clignotante JOYEUX ANNIVERSAIRE en rouge "]
["Julien","1985-07-05",29,"Bientôt",8,null,null,null,"=ET(VarEclairage;D=\"JOYEUX ANNIVERSAIRE\"'",null,null,"SAIRE\")"]
["Julien","1985-07-06",29,"Bientôt",9]
["Julien","1985-06-28",29,"Je vous souhaite",1]
["Julien","2000-06-28",14,"Je vous souhaite",1]

{"sheet":"Feuil2","index":1,"n_rows":0,"n_cols":0,"rows_kept":0,"cut":false,"hidden":true,"merged":[]}

{"sheet":"Feuil3","index":2,"n_rows":0,"n_cols":0,"rows_kept":0,"cut":false,"hidden":false,"merged":[]}